bitfinex/quotes_SOLUSD_20240717
["timestamp","ask_amount","ask_price","bid_price","bid_amount"]
[1721184786591,14.71,161.62,161.57,14.71]
[1721184786993,14.71,161.63,161.56,0.8285624]
[1721184787180,14.71,161.62,161.57,14.71]
[1721184787569,14.71,161.63,161.58,14.71]
[1721184787778,1.54608781,161.65,161.58,14.71]
[1721184787992,14.71,161.63,161.58,14.71]
[1721184788208,6.1892,161.57,161.56,0.8285624]
[1721184788365,1.54608781,161.58,161.56,0.8285624]
[1721184788565,16.25608781,161.57,161.56,0.8285624]
[1721184789586,14.71,161.57,161.56,0.8285624]
[1721184790301,7.73468781,161.59,161.56,0.8285624]
[1721184790465,0.17,161.58,161.56,0.8285624]
[1721184790794,6.3589,161.58,161.56,0.8285624]
[1721184790985,1.54608781,161.57,161.56,0.8285624]
[1721184792600,1.54608781,161.58,161.56,0.8285624]
[1721184792781,1.54608781,161.57,161.56,0.8285624]
[1721184794175,7.73528781,161.57,161.56,0.8285624]
[1721184794576,1.54608781,161.57,161.56,0.8285624]
[1721184795702,1.54608781,161.58,161.56,0.8285624]
[1721184796004,1.54608781,161.57,161.56,0.8285624]
[1721184796934,7.95738781,161.57,161.56,0.8285624]
[1721184797200,14.31658781,161.57,161.56,0.8285624]
[1721184797509,6.1896,161.56,161.45,22.60049832]
[1721184797684,7.73608781,161.55,161.45,22.60049832]
[1721184797888,1.54608781,161.54,161.45,22.60049832]
[1721184798299,7.73648781,161.54,161.43,10.0]
[1721184798605,29.47,161.53,161.42,6.41729453]
[1721184798820,1.88608781,161.52,161.43,1.2386392]
[1721184798973,1.54608781,161.51,161.43,1.2386392]
[1721184799176,22.62,161.5,161.42,7.34921722]
[1721184799385,1.54608781,161.49,161.4,2.06738443]
[1721184799681,1.54608781,161.48,161.41,1.23877319]
[1721184800375,22.62,161.5,161.41,10.0]
[1721184800720,6.3028,161.5,161.42,1.23855238]
[1721184800921,6.3028,161.5,161.43,10.0]
[1721184801288,1.54819311,161.49,161.43,10.0]
[1721184801493,6.3028,161.5,161.44,1.23855452]
[1721184801800,1.54819264,161.49,161.44,1.23855452]
[1721184802007,1.54819264,161.49,161.41,10.0]
[1721184802207,6.3028,161.5,161.42,1.23857914]
[1721184802208,7.85102392,161.5,161.42,1.23857914]
[1721184802513,7.85102392,161.5,161.43,1.23855284]
[1721184802514,6.3028,161.5,161.43,1.23855284]
[1721184802906,6.3028,161.5,161.42,0.34]
[1721184803103,6.3028,161.5,161.43,1.23847945]
[1721184803299,6.3028,161.5,161.42,0.34]
[1721184803623,29.47,161.53,161.43,10.0]
[1721184803796,29.47,161.53,161.44,0.34]
[1721184803999,29.47,161.53,161.43,15.787]
[1721184804316,35.6609,161.53,161.43,15.787]
[1721184804696,6.1914,161.52,161.43,15.787]
[1721184804893,1.54808904,161.51,161.43,15.787]
[1721184805617,6.1096,161.5,161.42,0.34]
[1721184805829,1.54820183,161.49,161.42,0.34]
[1721184806015,17.51679514,161.48,161.4,0.8285624]
[1721184806417,15.9686,161.48,161.41,1.2387184]
[1721184806823,15.9686,161.48,161.4,0.8285624]
[1721184807496,15.9686,161.48,161.41,0.17]
[1721184807702,17.51691323,161.48,161.4,0.8285624]
[1721184808406,17.51691323,161.48,161.41,1.23877203]
[1721184808803,15.9686,161.48,161.4,0.8285624]
[1721184809004,17.51695141,161.48,161.4,0.8285624]
[1721184810024,1.54844214,161.47,161.4,0.8285624]
[1721184814406,15.9686,161.48,161.41,1.23883207]
[1721184814734,6.1096,161.5,161.41,1.23883207]
[1721184815036,1.5482233,161.49,161.4,0.9985624]
[1721184815235,1.54834666,161.48,161.4,2.23723972]
[1721184815412,1.54834666,161.49,161.41,11.57865717]
[1721184815612,1.54834666,161.49,161.41,10.34]
[1721184816123,7.65784323,161.5,161.41,10.34]
[1721184816503,7.65784323,161.5,161.41,0.34]
[1721184817109,7.65784323,161.5,161.41,10.34]
[1721184817521,13.84994323,161.5,161.41,0.17]
[1721184817710,7.65784323,161.5,161.4,0.8285624]
[1721184818224,7.65784323,161.5,161.41,11.4086734]
[1721184818524,1.54817958,161.49,161.41,10.17]
[1721184819622,7.74102925,161.48,161.4,0.8285624]
[1721184819825,1.54822925,161.48,161.4,0.8285624]
[1721184820406,1.54822925,161.48,161.4,2.06733807]
[1721184821335,1.54822925,161.48,161.41,1.23881099]
[1721184822332,7.74092925,161.48,161.4,0.8285624]
[1721184822934,1.54822925,161.48,161.4,0.8285624]
[1721184823640,1.54822925,161.48,161.41,1.23883384]
[1721184823940,1.54822925,161.48,161.42,1.23881073]
[1721184824246,16.29822925,161.48,161.43,14.75]
[1721184825705,14.75,161.46,161.4,0.8285624]
[1721184825905,1.54854259,161.46,161.42,14.75]
[1721184826128,1.54853141,161.47,161.43,14.75]
[1721184827116,1.54851151,161.49,161.44,1.2388092]
[1721184827418,16.29851151,161.49,161.44,1.2388092]
[1721184827619,1.54832735,161.48,161.43,14.75]
[1721184827932,1.54832735,161.48,161.44,14.75]
[1721184828428,1.54832735,161.48,161.43,14.75]
[1721184829122,16.29832735,161.48,161.43,14.75]
[1721184829641,1.54832735,161.48,161.43,14.75]
[1721184829854,1.54832735,161.48,161.42,14.75]
[1721184830138,1.54832735,161.48,161.44,14.75]
[1721184830331,1.5483543,161.49,161.45,14.75]
[1721184830549,1.5483543,161.49,161.45,15.98868344]
[1721184830838,6.1096,161.5,161.46,15.98861582]
[1721184831012,1.54804326,161.51,161.46,14.75]
[1721184831211,16.29804326,161.51,161.42,15.1782]
[1721184831416,16.29804326,161.51,161.45,14.75]
[1721184831633,1.54804326,161.51,161.47,14.75]
[1721184832519,16.29804326,161.51,161.46,14.75]
[1721184832825,16.29804326,161.51,161.47,1.23847325]
[1721184833027,16.29804326,161.51,161.46,14.75]
[1721184833237,16.29804326,161.51,161.47,1.23847241]
[1721184833536,1.54804326,161.51,161.47,1.23847241]
[1721184833735,16.29804326,161.51,161.46,14.75]
[1721184833926,16.29804326,161.51,161.47,1.23847162]
[1721184834127,16.29804326,161.51,161.46,14.75]
[1721184834329,16.29804326,161.51,161.47,1.23847296]
[1721184834529,16.29804326,161.51,161.46,14.75]
[1721184834931,16.29804326,161.51,161.47,1.23847219]
[1721184835528,16.29804326,161.51,161.46,14.75]
[1721184835833,6.2699,161.54,161.48,14.75]
[1721184836031,16.29793773,161.53,161.48,14.75]
[1721184836719,16.29793773,161.53,161.49,1.23834984]
[1721184837454,1.54789096,161.54,161.5,14.75]
[1721184837748,1.54789096,161.54,161.49,1.23834984]
[1721184837749,14.75,161.52,161.44,10.0]
[1721184837951,14.75,161.52,161.47,14.75]
[1721184837952,16.2978827,161.52,161.47,14.75]
[1721184838127,1.5478827,161.51,161.47,14.75]
[1721184838439,16.2978827,161.51,161.46,14.75]
[1721184838642,14.75,161.5,161.45,14.75]
[1721184838939,16.29809645,161.49,161.42,15.1782]
[1721184839144,16.29809645,161.49,161.44,14.75]
[1721184839145,14.75,161.49,161.44,14.75]
[1721184839338,16.29829241,161.5,161.45,14.75]
[1721184839541,14.75,161.49,161.42,15.1782]
[1721184839734,16.29825028,161.49,161.44,14.75]
[1721184840233,16.29832261,161.5,161.45,15.98865809]
[1721184840933,16.29832261,161.5,161.45,14.75]
[1721184841627,14.75,161.5,161.45,14.75]
[1721184841961,6.503,161.51,161.46,15.98849629]
[1721184842145,8.0510929,161.51,161.47,15.98847432]
[1721184842440,8.0510929,161.51,161.46,14.75]
[1721184842639,8.0510929,161.51,161.47,1.23847451]
[1721184842939,14.75,161.53,161.48,15.98847467]
[1721184843241,14.75,161.5,161.45,15.98834574]
[1721184843426,14.75,161.51,161.46,15.98846]
[1721184843628,14.75,161.51,161.47,1.23843486]
[1721184843825,14.75,161.51,161.46,14.75]
[1721184844542,14.75,161.51,161.47,1.23843057]
[1721184844725,14.75,161.52,161.47,15.98843057]
[1721184844931,14.75,161.52,161.47,14.75]
[1721184845137,16.29796282,161.51,161.46,14.75]
[1721184845443,14.75,161.51,161.46,14.75]
[1721184846743,14.75,161.52,161.47,14.75]
[1721184846944,14.75,161.51,161.46,14.75]
[1721184847148,14.75,161.52,161.47,14.75]
[1721184848245,14.75,161.52,161.46,14.75]
[1721184848545,14.75,161.52,161.47,14.75]
[1721184848752,14.75,161.52,161.46,14.75]
[1721184849335,14.75,161.51,161.45,14.75]
[1721184850127,14.75,161.52,161.46,14.75]
[1721184850454,14.75,161.51,161.45,14.75]
[1721184850929,1.54796078,161.54,161.44,10.34]
[1721184850930,14.75,161.52,161.46,14.75]
[1721184851548,1.54796078,161.54,161.46,14.75]
[1721184851731,14.75,161.52,161.46,14.75]
[1721184852430,1.54786158,161.51,161.45,14.75]
[1721184852726,14.75,161.51,161.45,14.75]
[1721184853229,1.54796866,161.5,161.44,0.34]
[1721184853435,14.75,161.5,161.44,15.91940315]
[1721184853743,14.75,161.49,161.43,15.09]
[1721184853941,14.75,161.49,161.43,0.34]
[1721184854248,14.75,161.48,161.43,0.17]
[1721184854435,14.75,161.48,161.42,29.9282]
[1721184854847,14.75,161.49,161.43,14.75]
[1721184855041,14.75,161.49,161.44,14.75]
[1721184855223,14.75,161.5,161.45,15.9194027]
[1721184855427,14.75,161.5,161.45,14.75]
[1721184855636,14.75,161.5,161.44,14.75]
[1721184855847,14.75,161.49,161.44,14.75]
[1721184856355,14.75,161.49,161.43,14.75]
[1721184858766,14.75,161.48,161.43,14.75]
[1721184859151,14.75,161.48,161.42,40.0982]
[1721184859461,14.75,161.47,161.42,15.1782]
[1721184859664,14.75,161.47,161.43,1.16954938]
[1721184859838,14.75,161.48,161.43,1.16954938]
[1721184860041,1.54815282,161.51,161.42,29.9282]
[1721184860042,14.75,161.47,161.42,15.1782]
[1721184860864,14.75,161.46,161.41,0.34]
[1721184861466,7.7409411,161.49,161.4,0.8285624]
[1721184861671,14.75,161.41,161.4,0.8285624]
[1721184861866,22.4969,161.5,161.4,0.8285624]
[1721184861867,14.75,161.42,161.4,0.8285624]
[1721184865356,14.75,161.41,161.4,0.8285624]
[1721184866850,14.75,161.42,161.4,0.8285624]
[1721184867380,14.75,161.43,161.4,0.8285624]
[1721184867754,14.75,161.43,161.4,1.9993263]
[1721184868772,14.75,161.43,161.4,0.8285624]
[1721184868951,14.75,161.43,161.4,1.99934929]
[1721184869155,14.75,161.42,161.4,1.99934929]
[1721184869348,14.75,161.42,161.4,0.8285624]
[1721184869574,14.75,161.41,161.4,0.8285624]
[1721184886962,1.54895586,161.43,161.4,0.8285624]
[1721184887278,14.75,161.41,161.4,0.8285624]
[1721184889269,1.54870007,161.46,161.4,0.8285624]
[1721184889472,1.54870007,161.46,161.41,1.17041782]
[1721184889473,14.75,161.44,161.41,1.17041782]
[1721184890198,14.75,161.43,161.41,1.17041782]
[1721184890500,14.75,161.44,161.4,0.8285624]
[1721184890798,14.75,161.42,161.4,0.8285624]
[1721184891391,14.75,161.41,161.4,0.8285624]
[1721184892191,1.54870007,161.46,161.4,0.8285624]
[1721184892494,14.75,161.41,161.4,0.8285624]
[1721184892698,14.75,161.42,161.4,0.8285624]
[1721184892874,14.75,161.42,161.4,1.99947369]
[1721184893076,14.75,161.41,161.4,0.8285624]
[1721184899880,14.25,161.41,161.4,0.8285624]
[1721184900904,7.96979846,161.43,161.4,0.8285624]
[1721184901886,14.75,161.41,161.4,0.8285624]
[1721184904913,7.96979846,161.43,161.4,0.8285624]
[1721184905115,14.75,161.41,161.4,0.8285624]
[1721184906701,14.75,161.42,161.4,0.8285624]
[1721184907228,14.75,161.43,161.4,0.8285624]
[1721184908232,14.75,161.44,161.4,0.8285624]
[1721184908398,14.75,161.45,161.41,1.1702332]
[1721184908597,14.75,161.44,161.4,17.3841624]
[1721184909543,14.75,161.43,161.4,17.3841624]
[1721184912327,1.54862242,161.5,161.41,15.920606]
[1721184912529,14.75,161.46,161.4,27.3841624]
[1721184912904,14.75,161.44,161.4,17.3841624]
[1721184913340,14.75,161.44,161.41,1.17052772]
[1721184913516,1.54859896,161.47,161.42,1.17054969]
[1721184913712,14.75,161.46,161.42,1.16993842]
[1721184913930,14.75,161.46,161.41,14.75]
[1721184914126,1.54834426,161.5,161.41,14.75]
[1721184914336,14.75,161.46,161.41,14.75]
[1721184914557,14.75,161.45,161.4,27.7241624]
[1721184915344,14.75,161.45,161.4,17.7241624]
[1721184915555,14.75,161.43,161.4,17.3841624]
[1721184915854,14.75,161.43,161.4,0.8285624]
[1721184916014,14.75,161.41,161.4,0.8285624]
[1721184918947,14.75,161.42,161.4,0.8285624]
[1721184919452,16.29888377,161.41,161.4,0.8285624]
[1721184919644,14.75,161.41,161.4,0.8285624]
[1721184921244,16.29910424,161.41,161.4,0.8285624]
[1721184921940,14.75,161.41,161.4,0.8285624]
[1721184923237,1.54917257,161.42,161.4,0.8285624]
[1721184923446,14.75,161.41,161.4,0.8285624]
[1721184927641,1.54902449,161.43,161.4,0.8285624]
[1721184927840,14.75,161.42,161.4,0.8285624]
[1721184929031,14.75,161.41,161.4,0.8285624]
[1721184929230,14.75,161.42,161.4,0.8285624]
[1721184931534,14.75,161.41,161.4,0.8285624]
[1721184931932,6.5854,161.45,161.4,0.8285624]
[1721184932144,14.75,161.43,161.4,0.8285624]
[1721184932647,7.7416113,161.48,161.4,0.8285624]
[1721184932849,14.75,161.44,161.4,0.8285624]
[1721184933147,14.75,161.44,161.41,1.17059775]
[1721184934351,1.5487113,161.48,161.41,15.92059775]
[1721184934658,14.75,161.46,161.41,15.92059775]
[1721184936441,1.5487113,161.48,161.42,14.75]
[1721184936640,14.75,161.47,161.43,1.16983506]
[1721184937244,1.54829591,161.51,161.44,14.75]
[1721184937445,7.99204457,161.53,161.46,14.75]
[1721184937646,14.75,161.5,161.47,1.16915005]
[1721184938360,14.75,161.49,161.47,1.16915005]
[1721184938655,14.75,161.49,161.44,31.2962]
[1721184939759,14.75,161.49,161.45,1.16930706]
[1721184939946,14.75,161.49,161.46,1.16930742]
[1721184940959,14.75,161.49,161.47,1.16930786]
[1721184941262,14.75,161.49,161.45,1.16930786]
[1721184941561,14.75,161.49,161.46,1.16930833]
[1721184941740,14.75,161.5,161.46,1.16930833]
[1721184942258,1.54801079,161.52,161.46,1.16930833]
[1721184942461,1.54786089,161.56,161.49,14.75]
[1721184942661,1.54786089,161.56,161.5,1.16828355]
[1721184942963,14.75,161.54,161.5,1.16828355]
[1721184943139,7.84779303,161.57,161.5,1.16828355]
[1721184943340,14.75,161.56,161.51,30.3806]
[1721184943535,14.75,161.56,161.52,15.91773406]
[1721184944577,14.75,161.58,161.54,14.75]
[1721184944746,14.75,161.59,161.55,1.1672789]
[1721184945664,14.75,161.59,161.55,15.9172789]
[1721184945957,1.54723613,161.61,161.56,1.16724406]
[1721184946150,14.75,161.59,161.55,14.75]
[1721184946353,14.75,161.59,161.56,1.16702194]
[1721184946549,14.75,161.6,161.56,15.91702194]
[1721184946745,1.54704129,161.64,161.56,1.16702194]
[1721184946943,14.75,161.62,161.57,14.75]
[1721184947141,14.75,161.62,161.58,1.16650657]
[1721184947466,14.75,161.63,161.58,14.75]
[1721184947665,14.75,161.62,161.57,30.0868]
[1721184948967,14.75,161.61,161.57,15.3368]
[1721184950461,14.75,161.59,161.57,15.3368]
[1721184950968,16.29712608,161.58,161.53,15.3368]
[1721184951170,14.75,161.56,161.53,15.3368]
[1721184952969,14.75,161.56,161.54,1.16762454]
[1721184953471,14.75,161.57,161.53,15.3368]
[1721184954469,14.75,161.56,161.53,15.3368]
[1721184954842,14.75,161.56,161.54,1.16767079]
[1721184955043,1.54739942,161.59,161.54,1.16767079]
[1721184955044,14.75,161.57,161.54,1.16767079]
[1721184955452,14.75,161.57,161.55,1.16762178]
[1721184956344,14.75,161.57,161.54,1.167535]
[1721184956643,14.75,161.57,161.55,1.167535]
[1721184956839,14.75,161.58,161.55,1.167535]
[1721184957063,14.75,161.59,161.55,1.167535]
[1721184957370,14.75,161.59,161.56,1.16696915]
[1721184957542,14.75,161.6,161.56,1.16696915]
[1721184957946,1.54710715,161.64,161.57,14.75]
[1721184958148,14.75,161.62,161.58,15.91660277]
[1721184958360,1.54695441,161.66,161.58,15.91660277]
[1721184958555,1.54695441,161.66,161.59,15.09]
[1721184958756,14.75,161.63,161.59,0.34]
[1721184958958,14.75,161.61,161.57,0.17]
[1721184959260,14.75,161.6,161.57,0.17]
[1721184960144,14.75,161.6,161.56,15.09]
[1721184960954,14.75,161.59,161.53,15.3368]
[1721184961157,14.75,161.6,161.55,24.75]
[1721184961369,14.75,161.6,161.56,1.16669607]
[1721184961565,1.54695652,161.66,161.56,1.16669607]
[1721184961869,14.75,161.62,161.57,14.75]
[1721184962056,14.75,161.62,161.58,1.16641173]
[1721184962667,1.54695652,161.66,161.58,1.16641173]
[1721184962874,14.75,161.63,161.59,0.34]
[1721184963055,14.75,161.63,161.59,1.50609689]
[1721184963253,14.75,161.64,161.59,16.25609689]
[1721184963453,14.75,161.63,161.59,1.50609689]
[1721184964169,14.75,161.62,161.59,0.34]
[1721184964353,14.75,161.61,161.56,14.75]
[1721184964559,14.75,161.61,161.57,0.17]
[1721184965374,14.75,161.6,161.57,0.17]
[1721184965673,14.75,161.6,161.56,0.34]
[1721184965846,14.75,161.59,161.56,0.34]
[1721184966046,14.75,161.59,161.57,0.17]
[1721184966258,14.75,161.59,161.56,0.17]
[1721184966576,14.75,161.59,161.55,0.34]
[1721184967985,14.75,161.6,161.56,24.75]
[1721184968165,14.75,161.6,161.57,0.34]
[1721184968483,14.75,161.59,161.57,0.17]
[1721184968984,14.75,161.6,161.57,0.17]
[1721184969278,14.75,161.6,161.56,0.34]
[1721184969877,14.75,161.6,161.56,15.09]
[1721184970080,14.75,161.6,161.56,0.34]
[1721184970252,14.75,161.59,161.56,0.34]
[1721184970458,14.75,161.59,161.56,0.17]
[1721184970663,14.75,161.59,161.55,0.34]
[1721184970961,14.75,161.58,161.55,0.34]
[1721184971289,14.75,161.58,161.54,0.34]
[1721184971471,14.75,161.57,161.54,0.34]
[1721184971657,1.54715844,161.62,161.53,15.3368]
[1721184971866,6.1885,161.59,161.49,29.9063]
[1721184972073,14.75,161.54,161.49,29.9063]
[1721184973801,14.75,161.53,161.49,15.1563]
[1721184974401,14.75,161.53,161.5,0.34]
[1721184974695,14.75,161.52,161.49,15.1563]
[1721184984804,14.75,161.52,161.49,16.32486446]
[1721184985011,14.75,161.52,161.49,15.1563]
[1721184986398,14.75,161.52,161.49,16.32486638]
[1721184988773,14.75,161.5,161.45,6.37087124]
[1721184989079,14.75,161.47,161.43,1.16962339]
[1721184989304,14.75,161.47,161.43,40.0]
[1721184989624,14.75,161.48,161.43,55.91955744]
[1721184989806,14.75,161.48,161.43,25.91955744]
[1721184989980,14.75,161.48,161.43,24.75]
[1721184990182,14.75,161.48,161.44,1.16951181]
[1721184990378,1.54777305,161.51,161.45,0.17]
[1721184990593,14.75,161.48,161.46,1.16935439]
[1721184990801,14.75,161.48,161.45,0.34]
[1721184991006,14.75,161.48,161.44,0.34]
[1721184991579,14.75,161.47,161.44,0.34]
[1721184996499,14.75,161.46,161.44,0.34]
[1721184997190,14.75,161.46,161.41,14.75]
[1721184997393,1.54828862,161.45,161.38,10.0]
[1721184997597,14.75,161.44,161.4,1.99917436]
[1721184997904,1.5486249,161.48,161.4,1.99917436]
[1721184997905,14.75,161.45,161.41,14.75]
[1721184998106,14.75,161.46,161.41,14.75]
[1721184998310,1.54836606,161.51,161.42,10.0]
[1721184998492,14.75,161.47,161.43,0.17]
[1721184998697,14.75,161.47,161.43,0.34]
[1721184999913,14.75,161.47,161.43,1.50977314]
[1721185000500,1.54836606,161.51,161.44,10.0]
[1721185000685,21.3536,161.53,161.45,0.34]
[1721185000686,1.54807852,161.52,161.45,0.34]
[1721185001011,14.75,161.49,161.45,0.34]
[1721185001318,14.75,161.49,161.45,1.50931319]
[1721185001615,14.75,161.49,161.45,0.34]
[1721185001802,14.75,161.48,161.43,30.5726]
[1721185002009,14.75,161.48,161.45,1.16949079]
[1721185002319,14.75,161.48,161.46,1.16952186]
[1721185002813,14.75,161.49,161.46,1.16952186]
[1721185003212,14.75,161.49,161.45,1.16943535]
[1721185003513,14.75,161.48,161.46,1.16949317]
[1721185004831,1.54806369,161.51,161.43,15.8226]
[1721185005124,6.1923,161.49,161.4,0.8285624]
[1721185005285,14.75,161.45,161.41,30.0]
[1721185005486,14.75,161.45,161.41,31.17043306]
[1721185005794,14.75,161.45,161.41,30.0]
[1721185005998,14.75,161.45,161.4,15.5785624]
[1721185006889,14.75,161.45,161.41,1.17057297]
[1721185008087,14.75,161.45,161.4,15.5785624]
[1721185008425,14.75,161.45,161.41,1.17057455]
[1721185009189,14.75,161.45,161.4,15.5785624]
[1721185010291,1.54853785,161.48,161.4,15.5785624]
[1721185010490,14.75,161.46,161.41,1.17021169]
[1721185010808,14.75,161.45,161.4,15.5785624]
[1721185011801,14.75,161.46,161.41,14.75]
[1721185012506,14.75,161.46,161.42,1.17050291]
[1721185012729,14.75,161.46,161.41,14.75]
[1721185015335,1.5486103,161.5,161.42,24.92]
[1721185015634,14.75,161.48,161.43,16.08961393]
[1721185015843,21.3536,161.53,161.44,14.92]
[1721185015844,14.75,161.49,161.44,14.92]
[1721185016131,14.75,161.49,161.45,1.16958037]
[1721185017503,14.75,161.49,161.44,14.92]
[1721185018831,14.75,161.49,161.45,1.16961209]
[1721185019230,14.75,161.49,161.44,14.92]
[1721185020309,14.75,161.49,161.44,16.08961187]
[1721185020532,14.75,161.49,161.45,0.17]
[1721185023847,23.50229766,161.57,161.47,10.0]
[1721185024131,23.50229766,161.57,161.47,14.75]
[1721185024132,14.75,161.52,161.47,14.75]
[1721185024540,14.75,161.52,161.48,1.168881]
[1721185024718,14.75,161.52,161.49,1.16881473]
[1721185024918,21.9542,161.57,161.45,35.1247]
[1721185024919,14.75,161.5,161.45,15.1247]
[1721185025224,14.75,161.5,161.45,29.8747]
[1721185025531,16.2978768,161.51,161.46,14.75]
[1721185025832,14.75,161.5,161.45,29.8747]
[1721185026940,14.75,161.5,161.46,1.16936215]
[1721185027832,1.54807155,161.54,161.45,29.8747]
[1721185028146,14.75,161.5,161.45,29.8747]
[1721185028317,1.54812906,161.49,161.45,29.8747]
[1721185028626,14.75,161.5,161.46,1.1695882]
[1721185029233,16.29815185,161.49,161.45,15.1247]
[1721185029411,1.54820806,161.53,161.45,15.1247]
[1721185029610,14.75,161.51,161.46,14.75]
[1721185029819,14.75,161.51,161.47,0.17]
[1721185030142,14.75,161.51,161.45,15.1247]
[1721185030143,14.75,161.5,161.45,29.8747]
[1721185030723,14.75,161.51,161.46,14.75]
[1721185031241,14.75,161.51,161.47,0.34]
[1721185031439,21.9542,161.57,161.48,14.92]
[1721185031643,14.75,161.55,161.5,14.75]
[1721185031847,14.75,161.56,161.51,15.91836086]
[1721185032023,1.54767985,161.55,161.51,15.91836086]
[1721185032619,1.54767985,161.55,161.51,14.75]
[1721185033341,16.29767985,161.55,161.5,14.75]
[1721185033552,14.75,161.55,161.51,1.16839646]
[1721185034142,14.75,161.55,161.5,14.75]
[1721185034359,14.75,161.51,161.44,10.0]
[1721185034653,14.75,161.51,161.46,44.75]
[1721185034845,14.75,161.51,161.46,45.9192654]
[1721185035448,14.75,161.51,161.46,15.9192654]
[1721185036345,16.29808337,161.5,161.45,30.0447]
[1721185036523,14.75,161.5,161.45,29.8747]
[1721185038246,16.29815742,161.49,161.41,42.63889197]
[1721185038548,15.2375,161.53,161.41,42.63889197]
[1721185038549,1.5483413,161.48,161.42,44.75]
[1721185038748,14.75,161.47,161.42,44.75]
[1721185039262,14.75,161.47,161.42,14.75]
[1721185041458,14.75,161.47,161.41,16.5061]
[1721185041649,1.54844015,161.46,161.41,16.5061]
[1721185041950,1.54844015,161.46,161.41,31.2561]
[1721185042947,16.29844015,161.46,161.41,31.2561]
[1721185043151,14.75,161.46,161.41,31.2561]
[1721185043930,16.29846197,161.45,161.41,16.1661]
[1721185044137,14.75,161.42,161.4,0.8285624]
[1721185044344,16.29906937,161.41,161.4,0.8285624]
[1721185044554,14.75,161.41,161.4,0.8285624]
[1721185047358,21.2389,161.41,161.4,0.8285624]
[1721185047542,21.2389,161.41,161.33,21.05531896]
[1721185047749,1.54919046,161.4,161.33,21.05531896]
[1721185047951,16.29918977,161.39,161.34,14.75]
[1721185048257,1.54918977,161.4,161.35,1.17196765]
[1721185048477,14.75,161.39,161.36,1.17185034]
[1721185048882,14.75,161.39,161.34,14.75]
[1721185049383,14.75,161.4,161.35,25.09]
[1721185049563,14.75,161.4,161.35,15.09]
[1721185052167,14.75,161.39,161.35,15.09]
[1721185052486,14.75,161.39,161.33,16.30531896]
[1721185052670,14.75,161.39,161.34,15.09]
[1721185053473,14.75,161.39,161.34,0.34]
[1721185053675,14.75,161.39,161.34,15.09]
[1721185055490,14.75,161.39,161.34,0.34]
[1721185055662,14.75,161.39,161.34,15.09]
[1721185056491,14.75,161.39,161.35,14.75]
[1721185058194,1.54911221,161.42,161.35,14.75]
[1721185058372,14.75,161.39,161.35,14.75]
[1721185060062,1.54911221,161.42,161.36,15.09]
[1721185060387,14.75,161.42,161.37,14.75]
[1721185061496,1.54890733,161.47,161.39,14.75]
[1721185061668,14.75,161.44,161.39,14.75]
[1721185061870,14.75,161.42,161.38,14.92]
[1721185062589,14.75,161.42,161.38,0.17]
[1721185062892,14.75,161.42,161.38,0.34]
[1721185065792,14.75,161.43,161.38,15.09]
[1721185066681,14.75,161.44,161.39,14.75]
[1721185067000,16.29857963,161.43,161.38,15.09]
[1721185067186,1.54879304,161.47,161.38,0.34]
[1721185067390,14.75,161.42,161.38,0.34]
[1721185068794,14.75,161.42,161.35,26.646]